Organisation Name,Organisation Code,Directorate/Service,Service Category Label,Service Code,Supplier Name,Supplier Reference,Payment Date,Transaction Number,Net Payments,Purpose of Spend
North West Leicestershire District Council,31UH,Property Services,Property Commercial Lettings,PROPCL,TECSERV UK LIMITED,A028261,04/11/2020,1402204,297.55,General Repairs
North West Leicestershire District Council,31UH,Property Services,Property Commercial Lettings,PROPCL,Regarde Security Ltd,A013049,04/11/2020,1402389,270,Security Services
North West Leicestershire District Council,31UH,Street Management,Environment Transport,ENOT,WasteParts UK Limited,A036236,04/11/2020,1402430,460,Non Scheduled Maintenance - Parts
North West Leicestershire District Council,31UH,Street Management,Environment Transport,ENOT,Ford & Slater Group Ltd,A000625,04/11/2020,1402439,280.6,Non Scheduled Maintenance - Parts
North West Leicestershire District Council,31UH,Planning & Development,Environment - Development Control,EDC,TMP Worldwide Ltd,A045319,04/11/2020,1402557,531.86,Advertising
North West Leicestershire District Council,31UH,Housing Strategy,Community - Housing Strategy,HS,TQ Hotels Ltd,A046382,04/11/2020,1402561,300,Homelessness Accomodation
North West Leicestershire District Council,31UH,Housing Strategy,Community - Housing Strategy,HS,TQ Hotels Ltd,A046382,04/11/2020,1402562,300,Homelessness Accomodation
North West Leicestershire District Council,31UH,Housing Strategy,Community - Housing Strategy,HS,TQ Hotels Ltd,A046382,04/11/2020,1402565,1114.29,Homelessness Accomodation
North West Leicestershire District Council,31UH,Housing Strategy,Community - Housing Strategy,HS,TQ Hotels Ltd,A046382,04/11/2020,1402567,385.71,Homelessness Accomodation
North West Leicestershire District Council,31UH,Housing Strategy,Community - Housing Strategy,HS,TQ Hotels Ltd,A046382,04/11/2020,1402568,571.43,Homelessness Accomodation
North West Leicestershire District Council,31UH,Housing Strategy,Community - Housing Strategy,HS,TQ Hotels Ltd,A046382,04/11/2020,1402570,300,Homelessness Accomodation
North West Leicestershire District Council,31UH,Housing Strategy,Community - Housing Strategy,HS,TQ Hotels Ltd,A046382,04/11/2020,1402572,300,Homelessness Accomodation
North West Leicestershire District Council,31UH,Housing Strategy,Community - Housing Strategy,HS,TQ Hotels Ltd,A046382,04/11/2020,1402576,600,Homelessness Accomodation
North West Leicestershire District Council,31UH,Housing Strategy,Community - Housing Strategy,HS,TQ Hotels Ltd,A046382,04/11/2020,1402578,300,Homelessness Accomodation
North West Leicestershire District Council,31UH,Housing Strategy,Community - Housing Strategy,HS,TQ Hotels Ltd,A046382,04/11/2020,1402579,300,Homelessness Accomodation
North West Leicestershire District Council,31UH,Housing Strategy,Community - Housing Strategy,HS,TQ Hotels Ltd,A046382,04/11/2020,1402580,300,Homelessness Accomodation
North West Leicestershire District Council,31UH,Street Management,Environment Waste Management,ENOWM,One51 ES Plastics(UK) Ltd  t/a MGB Plastics,A044595,04/11/2020,1402583,10020,General Materials
North West Leicestershire District Council,31UH,Street Management,Environment Transport,ENOT,Taylor Engineering & Fabrications Ltd,A036178,04/11/2020,1402620,305.46,Non Scheduled Maintenance - Parts
North West Leicestershire District Council,31UH,Street Management,Environment Transport,ENOT,J F Lloyd & Sons,A000991,04/11/2020,1402634,330,Operational Purchases
North West Leicestershire District Council,31UH,Planning & Development,Environment - Development Control,EDC,TMP Worldwide Ltd,A045319,04/11/2020,1402640,401.28,Advertising
North West Leicestershire District Council,31UH,Planning & Development,Environment - Development Control,EDC,Wildwood Forestry,A046478,04/11/2020,1402642,500,River Mease Expenditure
North West Leicestershire District Council,31UH,Street Management,Environment Transport,ENOT,Mitchell Diesel Ltd t/a Mitchell Power Systems,A001128,04/11/2020,1402644,810.36,Repairs - Parts
North West Leicestershire District Council,31UH,Housing Repairs,HRA Housing Repairs & Maintenance,HRAHRM,Nuaire Trading Division of Polypipe Ltd,A045655,04/11/2020,1402647,3024,Non Scheduled Maintenance - Parts
North West Leicestershire District Council,31UH,Property Services,Property Commercial Lettings,PROPCL,Databac,A003043,04/11/2020,1402649,326,Operational Equipment
North West Leicestershire District Council,31UH,Planning & Development,Environment Planning Policy,EPP,No 5 Chambers Ltd,A030198,04/11/2020,1402653,14000,Legal & Professional Services
North West Leicestershire District Council,31UH,Housing,HRA Performance & Business Support,HRAPBS,Print Search Chester Limited,A036087,04/11/2020,1402658,1377,Rent Payment Cards
North West Leicestershire District Council,31UH,Street Management,Environment Parks,ENOP,Blaise Nursery,A046468,04/11/2020,1402659,6360,Operational Purchases
North West Leicestershire District Council,31UH,Housing Strategy,Community - Housing Strategy,HS,TQ Hotels Ltd,A046382,04/11/2020,1402680,300,Homelessness Accomodation
North West Leicestershire District Council,31UH,Housing Strategy,Community - Housing Strategy,HS,TQ Hotels Ltd,A046382,04/11/2020,1402681,385.71,Homelessness Accomodation
North West Leicestershire District Council,31UH,Street Management,Environment Transport,ENOT,Westbury Industrial Supplies Limited,A009933,04/11/2020,1402693,1182.92,Protective Clothing
North West Leicestershire District Council,31UH,Environmental Health,Environmental Health & Licensing,EEHL,The Oyster Partnership Ltd,A032796,04/11/2020,1402701,826.7,Agency Staff
North West Leicestershire District Council,31UH,Street Management,Environment Transport,ENOT,Mobile Hydraulics Ltd,A001131,04/11/2020,1402598,544.52,Repairs - Parts
North West Leicestershire District Council,31UH,Street Management,Environment Transport,ENOT,Mobile Hydraulics Ltd,A001131,04/11/2020,1402601,578,Operational Purchases
North West Leicestershire District Council,31UH,Street Management,Environment Transport,ENOT,Mobile Hydraulics Ltd,A001131,04/11/2020,1402602,277.12,Repairs - Parts
North West Leicestershire District Council,31UH,Street Management,Environment Transport,ENOT,Barnfather Wire (Midlands Ltd),A045825,04/11/2020,1402637,740,Operational Equipment
North West Leicestershire District Council,31UH,Planning & Development,Environment Planning Policy,EPP,Clearlead Consulting Ltd,A044888,04/11/2020,1402641,2586.67,Consultants Fees
North West Leicestershire District Council,31UH,Information Technology,ICT Services,ICT,ACS Systems (UK) Ltd T/a ACS Office Solutions,A043447,04/11/2020,1402645,3108,Contract Payments (Other) Ext
North West Leicestershire District Council,31UH,Planning & Development,Environment - Development Control,EDC,WMP Contracting T/A WM Longreach,A046444,04/11/2020,1402648,8460.29,River Mease Expenditure
North West Leicestershire District Council,31UH,Property Services,Property Commercial Lettings,PROPCL,Develop Training Limited,A046016,04/11/2020,1402650,980,Training Expenses
North West Leicestershire District Council,31UH,Street Management,Environment Transport,ENOT,Ford & Slater Group Ltd,A000625,04/11/2020,1402652,300,Repairs - Parts
North West Leicestershire District Council,31UH,Street Management,Environment Parks,ENOP,Park Hill Training Ltd,A043093,04/11/2020,1402654,2005,Training Expenses
North West Leicestershire District Council,31UH,Finance,Financial Planning,FINPLA,Michael Page International Recruitment Ltd,A041893,04/11/2020,1402691,5460,Agency Staff
North West Leicestershire District Council,31UH,Street Management,Environment Waste Management,ENOWM,Imperial Polythene,A045739,04/11/2020,1402697,757.12,General Materials
North West Leicestershire District Council,31UH,Street Management,Environment Waste Management,ENOWM,Imperial Polythene,A045739,04/11/2020,1402698,1426.88,General Materials
North West Leicestershire District Council,31UH,Housing Repairs,HRA Housing Repairs & Maintenance,HRAHRM,Michael Dyson Associates Ltd,A028431,04/11/2020,1401663,504,Consultants Fees
North West Leicestershire District Council,31UH,Street Management,Environment Transport,ENOT,Bandvulc Tyres Ltd,A033268,04/11/2020,1401706,1870,Transport Costs - Tyres
North West Leicestershire District Council,31UH,Street Management,Environment Transport,ENOT,Bandvulc Tyres Ltd,A033268,04/11/2020,1402002,748,Transport Costs - Tyres
North West Leicestershire District Council,31UH,Planning & Development,Environment - Town Centre/CCTV,ECCTV,Solon Security,A035272,04/11/2020,1402076,529.85,PCC Early Intervention Expenditure
North West Leicestershire District Council,31UH,Property Services,Property Commercial Lettings,PROPCL,TECSERV UK LIMITED,A028261,04/11/2020,1402205,295,General Repairs
North West Leicestershire District Council,31UH,Street Management,Environment Parks,ENOP,Groundsman Tools & Supplies LLP,A030744,04/11/2020,1402207,299.8,Operational Purchases
North West Leicestershire District Council,31UH,Chief Executive,Transformational Services,TS,Local Government Ombudsman,A039724,04/11/2020,1402380,350,Training Expenses
North West Leicestershire District Council,31UH,Street Management,Environment Transport,ENOT,Bandvulc Tyres Ltd,A033268,04/11/2020,1402529,2992,Transport Costs - Tyres
North West Leicestershire District Council,31UH,Legal & Democratic,Legal Services,LDLS,Sellick Partnership (East Midlands) Limited,A036668,04/11/2020,1402558,2473.53,Agency Staff
North West Leicestershire District Council,31UH,Street Management,Environment Transport,ENOT,Enterprise Rent-A-Car UK Ltd,A046419,04/11/2020,1402585,616.84,Hire Of Transport
North West Leicestershire District Council,31UH,Street Management,Environment Transport,ENOT,Enterprise Rent-A-Car UK Ltd,A046419,04/11/2020,1402586,564.3,Hire Of Transport
North West Leicestershire District Council,31UH,Street Management,Environment Transport,ENOT,Aebi Schmidt Uk Limited,A017053,04/11/2020,1402588,692.23,Repairs - Parts
North West Leicestershire District Council,31UH,Street Management,Environment Transport,ENOT,Mobile Hydraulics Ltd,A001131,04/11/2020,1402603,453.63,Repairs - Parts
North West Leicestershire District Council,31UH,Planning & Development,Building Control,EBC,Leicestershire County Council,A027423,04/11/2020,1402626,2199,LCC Search Fees
North West Leicestershire District Council,31UH,Planning & Development,Building Control,EBC,Leicestershire County Council,A027423,04/11/2020,1402627,550,LCC Search Fees
North West Leicestershire District Council,31UH,Street Management,Environment Parks,ENOP,Rigby Taylor Limited,A001392,04/11/2020,1402704,255,Operational Purchases
North West Leicestershire District Council,31UH,Property Services,Property Facilities Management,PROPFM,IDP Group,A045557,04/11/2020,1402716,2000,Consultants Fees
North West Leicestershire District Council,31UH,Chief Exec,Chief Executive,CHEX,Pollards Fruit & Veg,A045637,04/11/2020,1402766,320,Food Deliveries
North West Leicestershire District Council,31UH,Legal & Democratic,Legal Services,LDLS,Sellick Partnership (East Midlands) Limited,A036668,04/11/2020,1402780,2334.17,Agency Staff
North West Leicestershire District Council,31UH,Information Technology,ICT Services,ICT,ACS Systems (UK) Ltd T/a ACS Office Solutions,A043447,04/11/2020,1401439,9906,Contract Payments (Other) Ext
North West Leicestershire District Council,31UH,Information Technology,ICT Services,ICT,ACS Systems (UK) Ltd T/a ACS Office Solutions,A043447,04/11/2020,1401873,4882,Computing
North West Leicestershire District Council,31UH,Information Technology,ICT Services,ICT,Phoenix Software Limited,A001298,04/11/2020,1402633,11226.25,Admin Equipment - Maintenance
North West Leicestershire District Council,31UH,Finance,Housing Benefits,BENS,Harborough District Council,A008631,04/11/2020,1402707,7000,HB Subsidy Workbook Audits
North West Leicestershire District Council,31UH,Chief Exec,Chief Executive,CHEX,Circling Squares Ltd,A045857,04/11/2020,1402708,1750,Legal & Professional Services
North West Leicestershire District Council,31UH,Planning & Development,Environment - Town Centre/CCTV,ECCTV,JNE Security,A044895,04/11/2020,1402717,1551.5,Community Safety Expenditure
North West Leicestershire District Council,31UH,Housing Repairs,HRA Housing Repairs & Maintenance,HRAHRM,Leicestershire County Council,A000950,04/11/2020,1402726,2018.77,Tipping Charges
North West Leicestershire District Council,31UH,Information Technology,ICT Services,ICT,Premier Paper Group,A042438,04/11/2020,1402727,771.95,Consumable Materials
North West Leicestershire District Council,31UH,Street Management,Environment Waste Management,ENOWM,UK Container Maintenance Ltd,A039044,04/11/2020,1402759,777.9,General Materials
North West Leicestershire District Council,31UH,Economic Development,Business Focus Group,BFG,Arch Communications (UK) Ltd,A046458,04/11/2020,1402765,4220,Consultants Fees
North West Leicestershire District Council,31UH,Street Management,Environment Transport,ENOT,Selby's Garage (Woodhouse) Ltd,A044011,04/11/2020,1402772,501.33,Hire Of Operational Equipment
North West Leicestershire District Council,31UH,Street Management,Environment Transport,ENOT,Riverside Truck Rental Ltd,A045702,04/11/2020,1402776,2448.3,Hire Of Transport
North West Leicestershire District Council,31UH,Planning & Development,Environment Planning Policy,EPP,Nathaniel Lichfield & Partners Ltd,A044874,04/11/2020,1402779,3713,Legal & Professional Services
North West Leicestershire District Council,31UH,Street Management,Environment Parks,ENOP,Naturescape Ltd,A044290,04/11/2020,1401153,408.29,Operational Purchases
North West Leicestershire District Council,31UH,Street Management,Environment Waste Management,ENOWM,Glasdon UK Ltd,A000671,04/11/2020,1402715,2542.4,General Materials
North West Leicestershire District Council,31UH,Leisure & Culture,Cultural Services Arts & Events,CULTEV,Field and Lawn Ltd,A042594,04/11/2020,1402763,2940,Event Expenditure
North West Leicestershire District Council,31UH,Street Management,Environment - Street Scene,ESS,SLH Planning Solutions Limited,A044102,04/11/2020,1402797,2022.3,Consultants Fees
North West Leicestershire District Council,31UH,Finance,Financial Planning,FINPLA,Macildowie Associates Ltd,A046022,04/11/2020,1402877,1047.15,Agency Staff
North West Leicestershire District Council,31UH,Finance,Financial Planning,FINPLA,Macildowie Associates Ltd,A046022,04/11/2020,1402878,1565.67,Agency Staff
North West Leicestershire District Council,31UH,Leisure & Culture,Cultural Services Arts & Events,CULTEV,Field and Lawn Ltd,A042594,04/11/2020,1402764,8998.5,Event Expenditure
North West Leicestershire District Council,31UH,Street Management,Environment Transport,ENOT,Digraph Transport Supplies Ltd,A000486,04/11/2020,1402793,2309.69,Scheduled Servicing - Parts
North West Leicestershire District Council,31UH,Chief Exec,Chief Executive,CHEX,Rob Thompson Urbanism Limited,A045846,04/11/2020,1402800,5331,Legal & Professional Services
North West Leicestershire District Council,31UH,Street Management,Environment Transport,ENOT,Enterprise Rent-A-Car UK Ltd,A046419,04/11/2020,1402875,524.44,Hire Of Transport
North West Leicestershire District Council,31UH,Street Management,Environment Transport,ENOT,Enterprise Rent-A-Car UK Ltd,A046419,04/11/2020,1402876,524.44,Hire Of Transport
North West Leicestershire District Council,31UH,Finance,Financial Planning,FINPLA,Macildowie Associates Ltd,A046022,04/11/2020,1402879,1565.67,Agency Staff
North West Leicestershire District Council,31UH,Finance,Financial Planning,FINPLA,Macildowie Associates Ltd,A046022,04/11/2020,1402880,1468.54,Agency Staff
North West Leicestershire District Council,31UH,Finance,Financial Planning,FINPLA,Macildowie Associates Ltd,A046022,04/11/2020,1402881,1295.69,Agency Staff
North West Leicestershire District Council,31UH,Housing Repairs,HRA Housing Repairs & Maintenance,HRAHRM,TECSERV UK LIMITED,A028261,11/11/2020,1402014,14532.56,Contract Payments (Dws) Ext
North West Leicestershire District Council,31UH,Street Management,Environment Parks,ENOP,TH Heath (Contracts) Ltd,A028531,11/11/2020,1402719,1325,Operational Purchases
North West Leicestershire District Council,31UH,Environmental Health,Environmental Health & Licensing,EEHL,VIP-System Limited,A045326,11/11/2020,1402794,705.01,Hackney Carriage - Plates & Badges
North West Leicestershire District Council,31UH,Leisure & Culture,Cultural Services Arts & Events,CULTEV,Newton Newton Flags & Banners,A035170,11/11/2020,1402796,335,Event Expenditure
North West Leicestershire District Council,31UH,Environmental Health,Environmental Health & Licensing,EEHL,Digital ID Ltd,A034580,11/11/2020,1402798,324,Hackney Carriage - Plates & Badges
North West Leicestershire District Council,31UH,Communications,Corporate - Customer Services,CS,Royal Mail Group Ltd,A036466,11/11/2020,1402883,4000,Postal Collection
North West Leicestershire District Council,31UH,Planning & Development,Environment - Town Centre/CCTV,ECCTV,Vantage Technologies Ltd,A044209,11/11/2020,1402884,2090,Safeguarding
North West Leicestershire District Council,31UH,Leisure & Culture,Sport & Physical Activity,SPA,Measham Leisure Centre,A027454,11/11/2020,1402888,995.8,Measham LC Lifestyle DD
North West Leicestershire District Council,31UH,Information Technology,ICT Services,ICT,Cuttlefish Multimedia Ltd,A032102,11/11/2020,1402893,1718.33,Website Maintenance
North West Leicestershire District Council,31UH,Street Management,Environment Parks,ENOP,Regarde Security Ltd,A013049,11/11/2020,1402896,976.5,Security Services
North West Leicestershire District Council,31UH,Street Management,Environment Parks,ENOP,Regarde Security Ltd,A013049,11/11/2020,1402897,999,Security Services
North West Leicestershire District Council,31UH,Street Management,Environment Parks,ENOP,Regarde Security Ltd,A013049,11/11/2020,1402898,945,Security Services
North West Leicestershire District Council,31UH,Economic Development,Business Focus Group,BFG,Derbyshire County Council,A027541,11/11/2020,1402907,24807,Contributions
North West Leicestershire District Council,31UH,Street Management,Environment Waste Management,ENOWM,One51 ES Plastics(UK) Ltd  t/a MGB Plastics,A044595,11/11/2020,1402941,9920,General Materials
North West Leicestershire District Council,31UH,Street Management,Environment Waste Management,ENOWM,Kaefer Ltd,A044187,11/11/2020,1402974,450.05,Contract Payments (Dws) Ext
North West Leicestershire District Council,31UH,Street Management,Environment Transport,ENOT,Selby's Garage (Woodhouse) Ltd,A044011,11/11/2020,1402991,662.66,Hire Of Operational Equipment
North West Leicestershire District Council,31UH,Street Management,Environment Transport,ENOT,Dennis Eagle Limited,A000522,11/11/2020,1402994,477.79,Repairs - Parts
North West Leicestershire District Council,31UH,Street Management,Environment Transport,ENOT,Enterprise Flex-E-Rent,A046516,11/11/2020,1402996,2723.55,Hire Of Transport
North West Leicestershire District Council,31UH,Street Management,Environment Transport,ENOT,Brush Technology Ltd,A044453,11/11/2020,1402997,2038.15,Hire Of Operational Equipment
North West Leicestershire District Council,31UH,Housing Repairs,HRA Housing Repairs & Maintenance,HRAHRM,Westbury Industrial Supplies Limited,A009933,11/11/2020,1402052,3779.9,Protective Clothing
North West Leicestershire District Council,31UH,Property Services,Property Facilities Management,PROPFM,Logic Fire and Security Ltd,A044439,11/11/2020,1402383,996.64,Fire Precaution Appliances
North West Leicestershire District Council,31UH,Information Technology,ICT Services,ICT,ACS Systems (UK) Ltd T/a ACS Office Solutions,A043447,11/11/2020,1402412,2385,Operational Equipment
North West Leicestershire District Council,31UH,Housing Repairs,HRA Housing Repairs & Maintenance,HRAHRM,Screwfix Direct,A014681,11/11/2020,1402519,587.46,General Materials
North West Leicestershire District Council,31UH,Housing Repairs,HRA Housing Repairs & Maintenance,HRAHRM,Screwfix Direct,A014681,11/11/2020,1402522,262.44,General Materials
North West Leicestershire District Council,31UH,Housing Repairs,HRA Housing Repairs & Maintenance,HRAHRM,Screwfix Direct,A014681,11/11/2020,1402523,633.3,General Materials
North West Leicestershire District Council,31UH,Housing Repairs,HRA Housing Repairs & Maintenance,HRAHRM,Screwfix Direct,A014681,11/11/2020,1402525,255.8,General Materials
North West Leicestershire District Council,31UH,Street Management,Environment Transport,ENOT,Hako Machines Limited,A034237,11/11/2020,1402713,1017.95,Operational Purchases
North West Leicestershire District Council,31UH,Information Technology,ICT Services,ICT,ACS Systems (UK) Ltd T/a ACS Office Solutions,A043447,11/11/2020,1402801,542,Furniture
North West Leicestershire District Council,31UH,Street Management,Environment Transport,ENOT,Mertrux Ltd,A035291,11/11/2020,1402885,299.05,Repairs - Parts
North West Leicestershire District Council,31UH,Street Management,Environment - Street Scene,ESS,DarntonB3 Limited,A045505,11/11/2020,1402895,1270,Contract Payments (Other) Ext
North West Leicestershire District Council,31UH,Chief Exec,Chief Executive,CHEX,PTTP Planning Services,A046531,11/11/2020,1402906,2400,Interim Support
North West Leicestershire District Council,31UH,Street Management,Environment Transport,ENOT,Mertrux Ltd,A035291,11/11/2020,1402935,263.07,Scheduled Servicing - Parts
North West Leicestershire District Council,31UH,Street Management,Environment Transport,ENOT,Mertrux Ltd,A035291,11/11/2020,1402958,311.25,Non Insurance Damage
North West Leicestershire District Council,31UH,Leisure & Culture,Cultural Services Arts & Events,CULTEV,Live & Local Ltd,A043312,11/11/2020,1402980,1600,Touring Network
North West Leicestershire District Council,31UH,Leisure & Culture,Cultural Services Arts & Events,CULTEV,Live & Local Ltd,A043312,11/11/2020,1402981,1600,Touring Network
North West Leicestershire District Council,31UH,Housing Repairs,HRA Housing Repairs & Maintenance,HRAHRM,Michael Dyson Associates Ltd,A028431,11/11/2020,1402984,504,Consultants Fees
North West Leicestershire District Council,31UH,Communications,Corporate - Customer Services,CS,Tunstall Healthcare (UK) Limited,A001701,11/11/2020,1402535,21321.6,Alarm System Telephones
North West Leicestershire District Council,31UH,Information Technology,ICT Services,ICT,ACS Systems (UK) Ltd T/a ACS Office Solutions,A043447,11/11/2020,1402695,2033,Administrative Equipment
North West Leicestershire District Council,31UH,Street Management,Environment Transport,ENOT,Mertrux Ltd,A035291,11/11/2020,1402960,993.79,Non Insurance Damage
North West Leicestershire District Council,31UH,Environmental Health,Environmental Health & Licensing,EEHL,The Oyster Partnership Ltd,A032796,11/11/2020,1402998,875.91,Agency Staff
North West Leicestershire District Council,31UH,Environmental Health,Environmental Health & Licensing,EEHL,Eville And Jones Limited,A033670,11/11/2020,1402999,649.38,Vet Inspection
North West Leicestershire District Council,31UH,Street Management,Environment Transport,ENOT,Alpha Power Cleaners,A035656,11/11/2020,1403098,848.56,Operational Equipment
North West Leicestershire District Council,31UH,Housing Repairs,HRA Housing Repairs & Maintenance,HRAHRM,Citron Hygiene,A040930,11/11/2020,1403130,532.25,Operational Purchases
North West Leicestershire District Council,31UH,Chief Exec,Chief Executive,CHEX,Ecus Ltd,A044014,11/11/2020,1403159,6934,Advertising
North West Leicestershire District Council,31UH,Chief Exec,Chief Executive,CHEX,IDP Group,A045557,11/11/2020,1403160,1425,Advertising
North West Leicestershire District Council,31UH,Chief Exec,Chief Executive,CHEX,IDP Group,A045557,11/11/2020,1403161,3750,Legal & Professional Services
North West Leicestershire District Council,31UH,Street Management,Environment Transport,ENOT,Medisave UK Ltd,A044455,11/11/2020,1403168,313.49,First Aid Equipment
North West Leicestershire District Council,31UH,Housing Repairs,HRA Housing Repairs & Maintenance,HRAHRM,Laker BMS Ltd,A031787,11/11/2020,1403172,9619.22,Contract Payments (Dws) Ext
North West Leicestershire District Council,31UH,Street Management,Environment Transport,ENOT,Riverside Truck Rental Ltd,A045702,11/11/2020,1402363,3938,Operational Equipment
North West Leicestershire District Council,31UH,Chief Exec,Chief Executive,CHEX,Open University,A036708,11/11/2020,1403118,1440,Training Expenses
North West Leicestershire District Council,31UH,Street Management,Environment - Street Scene,ESS,Clockwork City Limited,A045987,11/11/2020,1403123,3300,Contract Payments (Other) Ext
North West Leicestershire District Council,31UH,Housing Repairs,HRA Housing Repairs & Maintenance,HRAHRM,Citron Hygiene,A040930,11/11/2020,1403129,399,Protective Clothing
North West Leicestershire District Council,31UH,Legal & Democratic,Legal Services,LDLS,Sellick Partnership (East Midlands) Limited,A036668,11/11/2020,1403166,2183.93,Agency Staff
North West Leicestershire District Council,31UH,Chief Exec,Chief Executive,CHEX,Edwards & Edwards Consultancy Ltd,A041694,11/11/2020,1403171,9842.5,Consultants Fees
North West Leicestershire District Council,31UH,Information Technology,ICT Services,ICT,Chess Cybersecurity Formerly Foursys Ltd,A029908,11/11/2020,1402607,8100,"Administrative Equipment- Purchase, Hire and Maintenance"
North West Leicestershire District Council,31UH,Information Technology,ICT Services,ICT,Phoenix Software Limited,A001298,11/11/2020,1402711,950,Admin Equipment - Hire/Rental
North West Leicestershire District Council,31UH,Street Management,Environment Waste Management,ENOWM,Groundsman Tools & Supplies LLP,A030744,11/11/2020,1403119,1700,Cleaning & Domestic Equipment
North West Leicestershire District Council,31UH,Street Management,Environment Waste Management,ENOWM,Kaefer Ltd,A044187,11/11/2020,1403141,533.25,Contract Payments (Dws) Ext
North West Leicestershire District Council,31UH,Property Services,Property Commercial Lettings,PROPCL,Purchase Power,A008204,18/11/2020,1403142,1574.59,Postages
North West Leicestershire District Council,31UH,Housing Repairs,HRA Housing Repairs & Maintenance,HRAHRM,Ctrack Ltd,A045628,18/11/2020,1403164,1576.8,Vehicle and Transport Costs
North West Leicestershire District Council,31UH,Finance,Financial Planning,FINPLA,Macildowie Associates Ltd,A046022,18/11/2020,1403217,1003.88,Agency Staff
North West Leicestershire District Council,31UH,Chief Exec,Chief Executive,CHEX,Edwards & Edwards Consultancy Ltd,A041694,18/11/2020,1403220,2000,Legal & Professional Services
North West Leicestershire District Council,31UH,Street Management,Environment - Street Scene,ESS,Mallard Consultancy Ltd,A039987,18/11/2020,1403221,990,Training Expenses
North West Leicestershire District Council,31UH,Street Management,Environment Transport,ENOT,Ford & Slater Group Ltd,A000625,18/11/2020,1403223,719.54,Non Scheduled Maintenance - Parts
North West Leicestershire District Council,31UH,Finance,Financial Planning,FINPLA,Mazars LLP,A045078,18/11/2020,1403225,9725,Audit Commision Fees
North West Leicestershire District Council,31UH,Economic Development,Business Focus Group,BFG,Building Business Consultancy Ltd,A045433,18/11/2020,1403229,3333.33,Consultants Fees
North West Leicestershire District Council,31UH,Planning & Development,Environment - Development Control,EDC,Jon Etchells Consulting Ltd,A029305,18/11/2020,1403233,1045,External Legal Fees & Advice
North West Leicestershire District Council,31UH,Chief Exec,Chief Executive,CHEX,D2N2 LEP,A046543,18/11/2020,1403234,11833.8,Contributions
North West Leicestershire District Council,31UH,Planning & Development,Environment - Development Control,EDC,TMP Worldwide Ltd,A045319,18/11/2020,1403237,340.52,Advertising
North West Leicestershire District Council,31UH,Street Management,Environment Transport,ENOT,Selby's Garage (Woodhouse) Ltd,A044011,18/11/2020,1403238,315.86,Hire Of Operational Equipment
North West Leicestershire District Council,31UH,Planning & Development,Environment - Development Control,EDC,TMP Worldwide Ltd,A045319,18/11/2020,1403240,433.18,Advertising
North West Leicestershire District Council,31UH,Information Technology,ICT Services,ICT,NB Data Ltd,A033802,18/11/2020,1403264,304.6,Operational Equipment
North West Leicestershire District Council,31UH,Economic Development,Business Focus Group,BFG,iG Surveys,A046433,18/11/2020,1403270,950,Legal & Professional Services
North West Leicestershire District Council,31UH,Street Management,Environment Transport,ENOT,Certas Energy Uk Ltd,A043448,18/11/2020,1403300,15834.43,Fuel
North West Leicestershire District Council,31UH,Finance,Financial Planning,FINPLA,Michael Page International Recruitment Ltd,A041893,18/11/2020,1403309,840,Agency Staff
North West Leicestershire District Council,31UH,Chief Exec,Chief Executive,CHEX,Mewies Engineering Consultants Ltd,A043524,18/11/2020,1403311,5193.61,Legal & Professional Services
North West Leicestershire District Council,31UH,Street Management,Environment Transport,ENOT,Aebi Schmidt Uk Limited,A017053,18/11/2020,1403331,342.17,Repairs - Parts
North West Leicestershire District Council,31UH,Street Management,Environment Transport,ENOT,Bucher Municipal Limited,A039355,18/11/2020,1403332,643.07,Repairs - Parts
North West Leicestershire District Council,31UH,Street Management,Environment Transport,ENOT,Sherwood Truck and Van Limited,A035120,18/11/2020,1403343,374.4,Non Insurance Damage
North West Leicestershire District Council,31UH,Street Management,Environment Transport,ENOT,Terberg Matec UK Limited,A001647,18/11/2020,1403344,869.59,Scheduled Servicing - Parts
North West Leicestershire District Council,31UH,Street Management,Environment Transport,ENOT,Terberg Matec UK Limited,A001647,18/11/2020,1403345,1105.68,Hire Of Transport
North West Leicestershire District Council,31UH,Corporate Director,Human Resources,HR,Halfords,A028298,18/11/2020,1403349,395.83,Operational Equipment
North West Leicestershire District Council,31UH,Street Management,Environment Transport,ENOT,Westbury Industrial Supplies Limited,A009933,18/11/2020,1403355,415,Protective Clothing
North West Leicestershire District Council,31UH,Housing,HRA Older Persons Service,HRAOPS,Tunstall Healthcare (UK) Limited,A001701,18/11/2020,1402629,1124.1,Alarm System Telephones
North West Leicestershire District Council,31UH,Corporate Director,Human Resources,HR,East Midlands Councils,A008942,18/11/2020,1402690,521.6,Employee Healthcare
North West Leicestershire District Council,31UH,Property Services,Property Facilities Management,PROPFM,Evac Chair International,A028975,18/11/2020,1402892,976,Fire Precaution Appliances
North West Leicestershire District Council,31UH,Information Technology,ICT Services,ICT,Phoenix Software Limited,A001298,18/11/2020,1403256,4715.48,Admin Equipment - Purchased & Recharged
North West Leicestershire District Council,31UH,Chief Executive,Transformational Services,TS,Firmstep,A030931,18/11/2020,1403350,1250,Training Expenses
North West Leicestershire District Council,31UH,Information Technology,ICT Services,ICT,Microsoft Ltd,A044997,18/11/2020,1403351,356,Admin Equipment - Hire/Rental
North West Leicestershire District Council,31UH,Street Management,Environment Transport,ENOT,Riverside Truck Rental Ltd,A045702,18/11/2020,1402777,3938,Hire Of Transport
North West Leicestershire District Council,31UH,Street Management,Environment Waste Management,ENOWM,Groundsman Tools & Supplies LLP,A030744,18/11/2020,1402982,675.75,Operational Equipment
North West Leicestershire District Council,31UH,Housing Repairs,HRA Housing Repairs & Maintenance,HRAHRM,Travis Perkins Trading Co Ltd,A001693,18/11/2020,1403287,295,General Materials
North West Leicestershire District Council,31UH,Housing Repairs,HRA Housing Repairs & Maintenance,HRAHRM,Travis Perkins Trading Co Ltd,A001693,18/11/2020,1403289,305,General Materials
North West Leicestershire District Council,31UH,Housing Repairs,HRA Housing Repairs & Maintenance,HRAHRM,Michael Dyson Associates Ltd,A028431,18/11/2020,1403291,940.8,Legal & Professional Services
North West Leicestershire District Council,31UH,Street Management,Environment Transport,ENOT,Dennis Eagle Limited,A000522,18/11/2020,1403326,295.16,Non Insurance Damage
North West Leicestershire District Council,31UH,Street Management,Environment Transport,ENOT,Dennis Eagle Limited,A000522,18/11/2020,1403329,270.32,Scheduled Servicing - Parts
North West Leicestershire District Council,31UH,Housing,HRA Older Persons Service,HRAOPS,Tunstall Healthcare (UK) Limited,A001701,18/11/2020,1402411,2982.48,Alarm System Telephones
North West Leicestershire District Council,31UH,Chief Exec,Chief Executive,CHEX,Edwards & Edwards Consultancy Ltd,A041694,18/11/2020,1403219,4080,Legal & Professional Services
North West Leicestershire District Council,31UH,Leisure & Culture,Sport & Physical Activity,SPA,Sports & Leisure Management Ltd,A045556,18/11/2020,1403231,3060.36,CLUB ACTIV8 Contribution
North West Leicestershire District Council,31UH,Planning & Development,Environment - Development Control,EDC,Rob Thompson Urbanism Limited,A045846,18/11/2020,1403232,3150,Consultants Fees
North West Leicestershire District Council,31UH,Leisure & Culture,Cultural Services Arts & Events,CULTEV,Planning Solutions Consulting Limited,A046491,18/11/2020,1403246,3700,Consultants Fees
North West Leicestershire District Council,31UH,Corporate Director,Human Resources,HR,Wider Plan Ltd,A043948,18/11/2020,1403262,1359,Staff Benefit Scheme
North West Leicestershire District Council,31UH,Street Management,Environment Transport,ENOT,Second 2 None,A031408,18/11/2020,1403347,7380,Contract Cleaning
North West Leicestershire District Council,31UH,Environmental Health,Environmental Health & Licensing,EEHL,The Oyster Partnership Ltd,A032796,18/11/2020,1403356,710.24,Agency Staff
North West Leicestershire District Council,31UH,Street Management,Environment Transport,ENOT,Certas Energy Uk Ltd,A043448,18/11/2020,1403427,396.3,Fuel
North West Leicestershire District Council,31UH,Housing Repairs,HRA Housing Repairs & Maintenance,HRAHRM,Halsall Lloyd Partnership,A045973,18/11/2020,1403428,475,Legal & Professional Services
North West Leicestershire District Council,31UH,Street Management,Environment Transport,ENOT,S & B Tyres Limited,A034071,18/11/2020,1403450,505,Transport Costs - Tyres
North West Leicestershire District Council,31UH,Economic Development,Business Focus Group,BFG,iG Surveys,A046433,18/11/2020,1403451,350,Legal & Professional Services
North West Leicestershire District Council,31UH,Street Management,Environment Parks,ENOP,Manor farm Nurseries,A034561,18/11/2020,1403455,763.2,Operational Purchases
North West Leicestershire District Council,31UH,Planning & Development,Environment - Development Control,EDC,GHM Planning Limited,A034296,18/11/2020,1403462,3108,Agency Staff
North West Leicestershire District Council,31UH,Planning & Development,Environment - Development Control,EDC,GHM Planning Limited,A034296,18/11/2020,1403463,2587.5,Agency Staff
North West Leicestershire District Council,31UH,Planning & Development,Environment - Development Control,EDC,Ilex Tree Services,A046556,18/11/2020,1403464,1243,External Legal Fees & Advice
North West Leicestershire District Council,31UH,Planning & Development,Environment - Development Control,EDC,DTA Ecology Ltd,A042148,18/11/2020,1403467,1500,External Legal Fees & Advice
North West Leicestershire District Council,31UH,Street Management,Environment Transport,ENOT,Transport Data Interchange Ltd,A046487,18/11/2020,1403469,3965,Contract Payments (Other) Ext
North West Leicestershire District Council,31UH,Street Management,Environment Transport,ENOT,Westbury Industrial Supplies Limited,A009933,18/11/2020,1403470,415.69,Protective Clothing
North West Leicestershire District Council,31UH,Leisure & Culture,Cultural Services Arts & Events,CULTEV,Sunshine Screenprint Ltd,A045020,18/11/2020,1403473,321,Event Expenditure
North West Leicestershire District Council,31UH,Street Management,Environment Transport,ENOT,Pd Supplies Ltd,A002198,18/11/2020,1403477,324,Non Scheduled Maintenance - Parts
North West Leicestershire District Council,31UH,Leisure & Culture,Cultural Services Arts & Events,CULTEV,Event Prop Hire,A046555,18/11/2020,1403481,1506.25,Event Expenditure
North West Leicestershire District Council,31UH,Finance,Revenues,REVS,Hinckley & Bosworth Borough Council,A000770,18/11/2020,1403483,18923,Shared Revs & Bens Partnership costs
North West Leicestershire District Council,31UH,Street Management,Environment Transport,ENOT,Mertrux Ltd,A035291,18/11/2020,1403439,263.07,Scheduled Servicing - Parts
North West Leicestershire District Council,31UH,Planning & Development,Environment - Development Control,EDC,GHM Planning Limited,A034296,18/11/2020,1403466,9165,Agency Staff
North West Leicestershire District Council,31UH,Street Management,Environment Transport,ENOT,Enterprise Rent-A-Car UK Ltd,A046419,18/11/2020,1403471,524.44,Hire Of Transport
North West Leicestershire District Council,31UH,Street Management,Environment Transport,ENOT,Enterprise Rent-A-Car UK Ltd,A046419,18/11/2020,1403472,524.44,Hire Of Transport
North West Leicestershire District Council,31UH,Legal & Democratic,Legal Services,LDLS,Sellick Partnership (East Midlands) Limited,A036668,18/11/2020,1403474,2201.35,Agency Staff
North West Leicestershire District Council,31UH,Housing Repairs,HRA Housing Repairs & Maintenance,HRAHRM,Summers Inman,A045259,18/11/2020,1403430,850,Legal & Professional Services
North West Leicestershire District Council,31UH,Street Management,Environment Transport,ENOT,Mertrux Ltd,A035291,25/11/2020,1402936,287.14,Non Insurance Damage
North West Leicestershire District Council,31UH,Street Management,Environment Transport,ENOT,Ford & Slater Group Ltd,A000625,25/11/2020,1403453,485.12,Non Scheduled Maintenance - Parts
North West Leicestershire District Council,31UH,Street Management,Environment Transport,ENOT,Digraph Transport Supplies Ltd,A000486,25/11/2020,1403456,694.26,Repairs - Parts
North West Leicestershire District Council,31UH,Leisure & Culture,Cultural Services Arts & Events,CULTEV,Envisage Promotions Ltd,A046567,25/11/2020,1403505,2118,Event Expenditure
North West Leicestershire District Council,31UH,Finance,Financial Planning,FINPLA,Arlingclose Ltd,A035603,25/11/2020,1403534,10826.87,Consultants Fees
North West Leicestershire District Council,31UH,Street Management,Environment - Street Scene,ESS,Crowngate Construction Professional Building Services Ltd,A046501,25/11/2020,1403538,31806.42,Contract Payments (Other) Ext
North West Leicestershire District Council,31UH,Housing,HRA Housing Management,HRAHM,IDP Group,A045557,25/11/2020,1403539,3187.5,Legal & Professional Services
North West Leicestershire District Council,31UH,Street Management,Environment - Street Scene,ESS,Harborough District Council,A008631,25/11/2020,1403541,6735.29,Contaminated Land Officer
North West Leicestershire District Council,31UH,Planning & Development,Environment - Town Centre/CCTV,ECCTV,Broadland Guarding Services Ltd,A042635,25/11/2020,1403542,4614.4,Service Contracts
North West Leicestershire District Council,31UH,Leisure & Culture,Sport & Physical Activity,SPA,Elliott Group Limited,A005413,25/11/2020,1403543,522.58,Portable accomodation and secure storage
North West Leicestershire District Council,31UH,Planning & Development,Environment - Town Centre/CCTV,ECCTV,Proudcastle,A040322,25/11/2020,1403546,1709.94,Service Contracts
North West Leicestershire District Council,31UH,Street Management,Environment Transport,ENOT,Enterprise Rent-A-Car UK Ltd,A046419,25/11/2020,1403554,616.84,Hire Of Transport
North West Leicestershire District Council,31UH,Housing Repairs,HRA Housing Repairs & Maintenance,HRAHRM,Dalrod UK Ltd,A046051,25/11/2020,1403565,3572.63,Housing Repairs
North West Leicestershire District Council,31UH,Street Management,Environment Waste Management,ENOWM,Sports & Leisure Management Ltd,A045556,25/11/2020,1403567,2028.98,Agency Staff
North West Leicestershire District Council,31UH,Street Management,Environment Waste Management,ENOWM,Sports & Leisure Management Ltd,A045556,25/11/2020,1403568,1689.64,Agency Staff
North West Leicestershire District Council,31UH,Property Services,Property Facilities Management,PROPFM,IDP Group,A045557,25/11/2020,1403569,3900,Consultants Fees
North West Leicestershire District Council,31UH,Information Technology,ICT Services,ICT,ACS Systems (UK) Ltd T/a ACS Office Solutions,A043447,25/11/2020,1403584,288,Direct Debit Promotions
North West Leicestershire District Council,31UH,Planning & Development,Environment Planning Policy,EPP,Nathaniel Lichfield & Partners Ltd,A044874,25/11/2020,1403589,1592,Legal & Professional Services
North West Leicestershire District Council,31UH,Planning & Development,Environment Planning Policy,EPP,SQW Group Limited,A045583,25/11/2020,1403590,4934.5,Legal & Professional Services
North West Leicestershire District Council,31UH,Finance,Financial Planning,FINPLA,Hinckley & Bosworth Borough Council,A000770,25/11/2020,1403592,244611.99,Shared Revs & Bens Partnership costs
North West Leicestershire District Council,31UH,Leisure & Culture,Cultural Services Arts & Events,CULTEV,Cadeby Tree Trust,A027405,25/11/2020,1403595,2000,Event Expenditure
North West Leicestershire District Council,31UH,Street Management,Environment Transport,ENOT,RD Moore Ltd,A027519,25/11/2020,1403614,350.5,Non Scheduled Maintenance - Parts
North West Leicestershire District Council,31UH,Street Management,Environment Transport,ENOT,Malvern Tyres,A035175,25/11/2020,1403615,331.8,Non Scheduled Maintenance - Parts
North West Leicestershire District Council,31UH,Street Management,Environment Transport,ENOT,Lee Wells Autobodies Ltd,A031849,25/11/2020,1403623,350,Non Insurance Damage
North West Leicestershire District Council,31UH,Street Management,Environment Transport,ENOT,S & B Tyres Limited,A034071,25/11/2020,1403624,452,Transport Costs - Tyres
North West Leicestershire District Council,31UH,Street Management,Environment Transport,ENOT,Trade Price Windscreens Ltd,A040486,25/11/2020,1403625,285,Non Scheduled Maintenance - Parts
North West Leicestershire District Council,31UH,Communications,Corporate - Communications,CP,The Copyright Licensing Agency,A011217,25/11/2020,1403631,897,Licences
North West Leicestershire District Council,31UH,Street Management,Environment Transport,ENOT,GME Motor Engineers (Cov) Ltd,A033389,25/11/2020,1403634,290,Repairs - Parts
North West Leicestershire District Council,31UH,Finance,Financial Planning,FINPLA,Sports & Leisure Management Ltd,A045556,25/11/2020,1403644,565176.05,Contract Payments (Other) Ext
North West Leicestershire District Council,31UH,Street Management,Environment Waste Management,ENOWM,Automotive Transport Training Ltd,A046541,25/11/2020,1403647,366.5,Training Expenses
North West Leicestershire District Council,31UH,Housing Repairs,HRA Housing Repairs & Maintenance,HRAHRM,Premier Mobility UK Ltd,A045304,25/11/2020,1403649,1294.2,Plumbing & Heating
North West Leicestershire District Council,31UH,Street Management,Environment Transport,ENOT,Dennis Eagle Limited,A000522,25/11/2020,1403666,310.32,Scheduled Servicing - Parts
North West Leicestershire District Council,31UH,Street Management,Environment Transport,ENOT,Lee Wells Autobodies Ltd,A031849,25/11/2020,1403670,280,Non Insurance Damage
North West Leicestershire District Council,31UH,Planning & Development,Environment - Development Control,EDC,Naturescape Limited,A046544,25/11/2020,1403445,1054.16,River Mease Expenditure
North West Leicestershire District Council,31UH,Street Management,Environment Parks,ENOP,Arco Limited,A000068,25/11/2020,1403529,253.1,Operational Purchases
North West Leicestershire District Council,31UH,Street Management,Environment Transport,ENOT,Mertrux Ltd,A035291,25/11/2020,1403547,263.07,Scheduled Servicing - Parts
North West Leicestershire District Council,31UH,Finance,Financial Planning,FINPLA,Macildowie Associates Ltd,A046022,25/11/2020,1403570,1306.51,Agency Staff
North West Leicestershire District Council,31UH,Corporate Director,Human Resources,HR,Specsavers Corporate Eyecare,A028625,25/11/2020,1403576,525,Eyecare Vouchers
North West Leicestershire District Council,31UH,Street Management,Environment Transport,ENOT,Malvern Tyres,A035175,25/11/2020,1403608,259.75,Transport Costs - Tyres
North West Leicestershire District Council,31UH,Property Services,Property Commercial Lettings,PROPCL,Coalville Cleaning Services,A003037,25/11/2020,1403642,653.25,Contract Cleaning
North West Leicestershire District Council,31UH,Street Management,Environment Transport,ENOT,Coalville Cleaning Services,A003037,25/11/2020,1403643,347.53,Contract Cleaning
North West Leicestershire District Council,31UH,Street Management,Environment Transport,ENOT,Calor Gas Limited,A032686,25/11/2020,1403645,1220.47,Gas
North West Leicestershire District Council,31UH,Street Management,Environment Transport,ENOT,Geesink Norba Limited,A017895,25/11/2020,1403678,277.72,Scheduled Servicing - Parts
North West Leicestershire District Council,31UH,Street Management,Environment Transport,ENOT,Terberg Matec UK Limited,A001647,25/11/2020,1401251,1044.89,Non Scheduled Maintenance - Parts
North West Leicestershire District Council,31UH,Street Management,Environment Parks,ENOP,Sea Training International Ltd,A046509,25/11/2020,1403536,6150.74,Operational Equipment
North West Leicestershire District Council,31UH,Corporate Director,Human Resources,HR,Health Management Ltd,A038840,25/11/2020,1403574,613,Medical Fees
North West Leicestershire District Council,31UH,Street Management,Environment Transport,ENOT,Pd Supplies Ltd,A002198,25/11/2020,1403741,749.5,Operational Purchases
North West Leicestershire District Council,31UH,Street Management,Environment Transport,ENOT,Taylor Engineering & Fabrications Ltd,A036178,25/11/2020,1403771,1098.54,Repairs - Parts
North West Leicestershire District Council,31UH,Information Technology,ICT Services,ICT,Cuttlefish Multimedia Ltd,A032102,25/11/2020,1403772,390,Computer Development
North West Leicestershire District Council,31UH,Information Technology,ICT Services,ICT,ACS Systems (UK) Ltd T/a ACS Office Solutions,A043447,25/11/2020,1401409,2869,Operational Equipment
North West Leicestershire District Council,31UH,Information Technology,ICT Services,ICT,ACS Systems (UK) Ltd T/a ACS Office Solutions,A043447,25/11/2020,1401441,1836,Computing
North West Leicestershire District Council,31UH,Housing Repairs,HRA Housing Repairs & Maintenance,HRAHRM,Laker BMS Ltd,A031787,25/11/2020,1403779,10079.78,Contract Payments (Dws) Ext
North West Leicestershire District Council,31UH,Housing Repairs,HRA Housing Repairs & Maintenance,HRAHRM,Citron Hygiene,A040930,25/11/2020,1403131,399,Operational Purchases
North West Leicestershire District Council,31UH,Street Management,Environment - Street Scene,ESS,Enviro Technology Services Plc,A018437,25/11/2020,1403748,2025,Air Quality Strategy
North West Leicestershire District Council,31UH,Legal & Democratic,Legal Services,LDLS,Sellick Partnership (East Midlands) Limited,A036668,25/11/2020,1403753,2043.85,Agency Staff
North West Leicestershire District Council,31UH,Finance,Financial Planning,FINPLA,Macildowie Associates Ltd,A046022,25/11/2020,1403776,1598.14,Agency Staff
North West Leicestershire District Council,31UH,Housing Repairs,HRA Housing Repairs & Maintenance,HRAHRM,Travis Perkins Trading Co Ltd,A001693,25/11/2020,1403781,305,Hire Of Operational Equipment
North West Leicestershire District Council,31UH,Housing Repairs,HRA Housing Repairs & Maintenance,HRAHRM,Travis Perkins Trading Co Ltd,A001693,25/11/2020,1403782,305,Hire Of Operational Equipment
North West Leicestershire District Council,31UH,Housing Repairs,HRA Housing Repairs & Maintenance,HRAHRM,Travis Perkins Trading Co Ltd,A001693,25/11/2020,1403783,250,Hire Of Operational Equipment
North West Leicestershire District Council,31UH,Housing Repairs,HRA Housing Repairs & Maintenance,HRAHRM,Travis Perkins Trading Co Ltd,A001693,25/11/2020,1403785,300,Hire Of Operational Equipment
North West Leicestershire District Council,31UH,Housing Repairs,HRA Housing Repairs & Maintenance,HRAHRM,Travis Perkins Trading Co Ltd,A001693,25/11/2020,1403788,295,Hire Of Operational Equipment
North West Leicestershire District Council,31UH,Housing Repairs,HRA Housing Repairs & Maintenance,HRAHRM,Travis Perkins Trading Co Ltd,A001693,25/11/2020,1403789,325,Hire Of Operational Equipment
North West Leicestershire District Council,31UH,Housing Repairs,HRA Housing Repairs & Maintenance,HRAHRM,Travis Perkins Trading Co Ltd,A001693,25/11/2020,1403790,325,Hire Of Operational Equipment
North West Leicestershire District Council,31UH,Finance,Exchequer Services,EXCH,Click Travel Ltd,A044308,04/11/2020,1402661,1732.03,Travel and Subsistence
North West Leicestershire District Council,31UH,Finance,Exchequer Services,EXCH,Click Travel Ltd,A044308,04/11/2020,1402662,1288.57,Travel and Subsistence
North West Leicestershire District Council,31UH,Finance,Exchequer Services,EXCH,Comensura Limited,A036958,04/11/2020,1402663,20538.23,Agency Staff
North West Leicestershire District Council,31UH,Finance,Exchequer Services,EXCH,Comensura Limited,A036958,04/11/2020,1402664,20514.14,Agency Staff
North West Leicestershire District Council,31UH,Property Services,Property Commercial Lettings,PROPCL,British Telecommunications Plc,A000233,04/11/2020,1402673,1194.51,Telephones
North West Leicestershire District Council,31UH,Street Management,Environment Parks,ENOP,Park Hill Training Ltd,A043093,04/11/2020,1402678,-392,Training Expenses
North West Leicestershire District Council,31UH,Street Management,Environment - Street Scene,ESS,Animal Care Services Limited,A046488,04/11/2020,1402679,922.25,Stray Dog Service
North West Leicestershire District Council,31UH,Street Management,Environment - Street Scene,ESS,Ibstock Community Voice,A043359,04/11/2020,1402688,300,Advertising
North West Leicestershire District Council,31UH,Housing Repairs,HRA Housing Repairs & Maintenance,HRAHRM,Western Power Distribution,A038499,04/11/2020,1402706,-1725.05,Housing Repairs
North West Leicestershire District Council,31UH,Housing,HRA Housing Management,HRAHM,JLA Limited,A043639,04/11/2020,1402722,427.84,Cleaning & Domestic Equipment
North West Leicestershire District Council,31UH,Finance,Financial Planning,FINPLA,Ashby De La Zouch Town Council,A000091,04/11/2020,1402724,54158.17,Ashby Town Council - Neighbourhood Plan
North West Leicestershire District Council,31UH,Housing Repairs,HRA Housing Repairs & Maintenance,HRAHRM,T & S Heating Ltd,A046054,04/11/2020,1402768,1462.02,Footpaths & Unadopted Roads
North West Leicestershire District Council,31UH,Housing,HRA Housing Management,HRAHM,Redacted - Personal Data,A046534,04/11/2020,1402769,250,Under Occupancy Incentives
North West Leicestershire District Council,31UH,Legal & Democratic,Legal Services,LDLS,HM Revenue & Customs,A043432,04/11/2020,1402790,4200,Acquisition - Land and Buildings
North West Leicestershire District Council,31UH,Environmental Health,Environmental Health & Licensing,EEHL,Redacted - Personal Data,A046536,04/11/2020,1402814,311.93,Taxi - Licences
North West Leicestershire District Council,31UH,Housing Repairs,HRA Housing Repairs & Maintenance,HRAHRM,DMW Environmental Safety Ltd,A044203,04/11/2020,1402817,6080.17,Legal & Professional Services
North West Leicestershire District Council,31UH,Information Technology,ICT Services,ICT,Asset Link Capital (No7) Limited,A046537,04/11/2020,1402874,339.08,Equipment Operating Leases
North West Leicestershire District Council,31UH,Housing,HRA Housing Management,HRAHM,Redacted - Personal Data,A000133,05/11/2020,1402910,250,Under Occupancy Incentives
North West Leicestershire District Council,31UH,Finance,Financial Planning,FINPLA,Public Works Loan Board,A001340,05/11/2020,1402911,43125,Policy Lending
North West Leicestershire District Council,31UH,Finance,Revenues,REVS,Redacted - Personal Data,A000133,05/11/2020,1402913,500,Test and Trace Payment
North West Leicestershire District Council,31UH,Finance,Revenues,REVS,Redacted - Personal Data,A000133,05/11/2020,1402914,500,Test and Trace Payment
North West Leicestershire District Council,31UH,Finance,Revenues,REVS,Redacted - Personal Data,A000133,05/11/2020,1402916,500,Test and Trace Payment
North West Leicestershire District Council,31UH,Finance,Revenues,REVS,Redacted - Personal Data,A000133,05/11/2020,1402917,500,Test and Trace Payment
North West Leicestershire District Council,31UH,Finance,Revenues,REVS,Redacted - Personal Data,A000133,05/11/2020,1402918,500,Test and Trace Payment
North West Leicestershire District Council,31UH,Finance,Revenues,REVS,Redacted - Personal Data,A000133,05/11/2020,1402919,500,Test and Trace Payment
North West Leicestershire District Council,31UH,Finance,Financial Planning,FINPLA,Department for Communities & Local Government,A028518,05/11/2020,1402920,4267611,Subsidy Receipts & Repayments
North West Leicestershire District Council,31UH,Finance,Financial Planning,FINPLA,Leicestershire County Council,A000950,05/11/2020,1402921,4683571,Precept
North West Leicestershire District Council,31UH,Finance,Financial Planning,FINPLA,The Office of the Police and Crime Commissioner for Leicestershire,A007096,05/11/2020,1402922,812893.05,Precept
North West Leicestershire District Council,31UH,Finance,Financial Planning,FINPLA,"Leicester, Leicestershire & Rutland Combined Fire Authority",A028339,05/11/2020,1402923,236911,Precept
North West Leicestershire District Council,31UH,Finance,Financial Planning,FINPLA,Leicestershire County Council,A000950,05/11/2020,1402924,1988179,Precept
North West Leicestershire District Council,31UH,Finance,Exchequer Services,EXCH,Total Gas & Power,A033385,05/11/2020,1402925,12985.01,Electricity
North West Leicestershire District Council,31UH,Finance,Revenues,REVS,Redacted - Personal Data,A000133,05/11/2020,1402926,500,Test and Trace Payment
North West Leicestershire District Council,31UH,Finance,Revenues,REVS,Redacted - Personal Data,A000133,05/11/2020,1402927,500,Test and Trace Payment
North West Leicestershire District Council,31UH,Finance,Revenues,REVS,Redacted - Personal Data,A000133,05/11/2020,1402928,500,Test and Trace Payment
North West Leicestershire District Council,31UH,Information Technology,ICT Services,ICT,EE Ltd (Airtime),A018592,11/11/2020,1402929,2770.2,Mobile Telephones
North West Leicestershire District Council,31UH,Information Technology,ICT Services,ICT,EE Ltd (Airtime),A018592,11/11/2020,1402930,4748.18,Mobile Telephones
North West Leicestershire District Council,31UH,Housing,HRA Housing Management,HRAHM,JLA Limited,A043639,11/11/2020,1402946,412,Cleaning & Domestic Equipment
North West Leicestershire District Council,31UH,Street Management,Environment Transport,ENOT,Ford & Slater Group Ltd,A000625,18/11/2020,1402973,-300,Repairs - Parts
North West Leicestershire District Council,31UH,Housing,HRA Housing Management,HRAHM,Tennals Pest Control,A045705,11/11/2020,1403001,1482,Pest Control
North West Leicestershire District Council,31UH,Housing,HRA Housing Management,HRAHM,Tennals Pest Control,A045705,11/11/2020,1403002,987,Pest Control
North West Leicestershire District Council,31UH,Housing,HRA Housing Management,HRAHM,Tennals Pest Control,A045705,11/11/2020,1403003,1451.7,Pest Control
North West Leicestershire District Council,31UH,Housing,HRA Housing Management,HRAHM,Tennals Pest Control,A045705,11/11/2020,1403004,1397,Pest Control
North West Leicestershire District Council,31UH,Housing,HRA Housing Management,HRAHM,JLA Limited,A043639,11/11/2020,1403005,282,Cleaning & Domestic Equipment
North West Leicestershire District Council,31UH,Corporate Director,Human Resources,HR,Protectahome Ltd,A046540,11/11/2020,1403006,4166.67,Grants
North West Leicestershire District Council,31UH,Legal & Democratic,Legal Services,LDLS,HM Revenue & Customs,A038239,11/11/2020,1403015,3930,Acquisition - Land and Buildings
North West Leicestershire District Council,31UH,Housing,HRA Housing Management,HRAHM,Redacted - Personal Data,A046545,11/11/2020,1403115,2000,Under Occupancy Incentives
North West Leicestershire District Council,31UH,Housing,HRA Housing Management,HRAHM,Redacted - Personal Data,A046546,11/11/2020,1403149,250,Surveillance
North West Leicestershire District Council,31UH,Housing,HRA Housing Management,HRAHM,Redacted - Personal Data,A046548,11/11/2020,1403151,250,Surveillance
North West Leicestershire District Council,31UH,Housing,HRA Housing Management,HRAHM,Redacted - Personal Data,A046547,11/11/2020,1403152,250,Surveillance
North West Leicestershire District Council,31UH,Housing,HRA Housing Management,HRAHM,Leicestershire County Council,A000950,11/11/2020,1403170,9584.74,Cleaning & Domestic Equipment
North West Leicestershire District Council,31UH,Corporate Director,Human Resources,HR,The Disclosure & Barring Service,A027625,17/11/2020,1403210,400,DBS Checks
North West Leicestershire District Council,31UH,Legal & Democratic,Legal Services,LDLS,HM Revenue & Customs,A000133,17/11/2020,1403211,5550,Acquisition - Land and Buildings
North West Leicestershire District Council,31UH,Finance,Financial Planning,FINPLA,Busby Partners Ltd,A000133,17/11/2020,1403214,15000,Section 106 Payment
North West Leicestershire District Council,31UH,Finance,Revenues,REVS,Redacted - Personal Data,A000133,17/11/2020,1403497,500,Test and Trace Payment
North West Leicestershire District Council,31UH,Finance,Financial Planning,FINPLA,Smiths Solicitors,A000133,17/11/2020,1403499,185000,Acquisition - Land and Buildings
North West Leicestershire District Council,31UH,Finance,Exchequer Services,EXCH,British Telecommunications Plc,A000233,17/11/2020,1403501,4012.05,Telephones
North West Leicestershire District Council,31UH,Finance,Exchequer Services,EXCH,Vodafone Limited,A001861,17/11/2020,1403502,639.52,Mobile Telephones
North West Leicestershire District Council,31UH,Finance,Exchequer Services,EXCH,Click Travel Ltd,A044308,18/11/2020,1403226,1170.11,Travel and Subsistence
North West Leicestershire District Council,31UH,Finance,Exchequer Services,EXCH,Click Travel Ltd,A044308,18/11/2020,1403227,1707.21,Travel and Subsistence
North West Leicestershire District Council,31UH,Neighbourhoods & Communities,N & C Neighbourhoods,NACN,Griffydam Community Group,A042657,18/11/2020,1403239,500,Small Grant Scheme
North West Leicestershire District Council,31UH,Housing Repairs,HRA Housing Repairs & Maintenance,HRAHRM,European Electronique Ltd,A000576,18/11/2020,1403242,12086.76,Contract Payments (Dws) Ext
North West Leicestershire District Council,31UH,Environmental Health,Environmental Services,EES,BDW Trading Ltd,A046554,18/11/2020,1403253,1777.5,Legal & Professional Services
North West Leicestershire District Council,31UH,Housing Repairs,HRA Housing Repairs & Maintenance,HRAHRM,HSP Consulting Engineers Ltd,A046099,18/11/2020,1403258,475,Legal & Professional Services
North West Leicestershire District Council,31UH,Housing Repairs,HRA Housing Repairs & Maintenance,HRAHRM,HSP Consulting Engineers Ltd,A046099,18/11/2020,1403259,2444.5,Legal & Professional Services
North West Leicestershire District Council,31UH,Housing Repairs,HRA Housing Repairs & Maintenance,HRAHRM,HSP Consulting Engineers Ltd,A046099,18/11/2020,1403260,1630,Legal & Professional Services
North West Leicestershire District Council,31UH,Legal & Democratic,Electoral & Land Charges,LDELC,SCI Print Limited,A028974,18/11/2020,1403286,1142.25,External Printing
North West Leicestershire District Council,31UH,Information Technology,ICT Services,ICT,Canon UK Ltd,A040459,18/11/2020,1403295,3822.88,Equipment Operating Leases
North West Leicestershire District Council,31UH,Finance,Exchequer Services,EXCH,Click Travel Ltd,A044308,18/11/2020,1403305,1440.44,Travel and Subsistence
North West Leicestershire District Council,31UH,Housing,HRA Housing Management,HRAHM,Tennals Pest Control,A045705,18/11/2020,1403306,865.5,Pest Control
North West Leicestershire District Council,31UH,Finance,Exchequer Services,EXCH,Comensura Limited,A036958,18/11/2020,1403354,18532.31,Agency Staff
North West Leicestershire District Council,31UH,Housing Repairs,HRA Housing Repairs & Maintenance,HRAHRM,Kaefer Ltd,A044187,18/11/2020,1402975,1582.76,Contract Payments (Dws) Ext
North West Leicestershire District Council,31UH,Environmental Health,Environmental Health & Licensing,EEHL,Animal Care Services Limited,A046488,18/11/2020,1403424,2215.29,Stray Dog Service
North West Leicestershire District Council,31UH,Economic Development,Business Focus Group,BFG,Redacted - Personal Data,A046562,18/11/2020,1403442,250,Grants
North West Leicestershire District Council,31UH,Economic Development,Business Focus Group,BFG,Redacted - Personal Data,A046563,18/11/2020,1403443,250,Grants
North West Leicestershire District Council,31UH,Economic Development,Business Focus Group,BFG,Redacted - Personal Data,A046564,18/11/2020,1403444,250,Grants
North West Leicestershire District Council,31UH,Finance,Financial Planning,FINPLA,Ashby De La Zouch Town Council,A000091,18/11/2020,1403478,21999.98,Section 106 Payment
North West Leicestershire District Council,31UH,Finance,Exchequer Services,EXCH,Comensura Limited,A036958,18/11/2020,1403506,18478.2,Agency Staff
North West Leicestershire District Council,31UH,Finance,Revenues,REVS,Redacted - Personal Data,A000133,19/11/2020,1403511,500,Test and Trace Payment
North West Leicestershire District Council,31UH,Finance,Revenues,REVS,Redacted - Personal Data,A000133,19/11/2020,1403512,500,Test and Trace Payment
North West Leicestershire District Council,31UH,Finance,Financial Planning,FINPLA,NHS West Leicestershire CCG,A000133,19/11/2020,1403513,840782.13,Section 106 Payment
North West Leicestershire District Council,31UH,Finance,Revenues,REVS,Redacted - Personal Data,A000133,19/11/2020,1403514,500,Test and Trace Payment
North West Leicestershire District Council,31UH,Finance,Revenues,REVS,Redacted - Personal Data,A000133,19/11/2020,1403515,500,Test and Trace Payment
North West Leicestershire District Council,31UH,Finance,Revenues,REVS,Redacted - Personal Data,A000133,19/11/2020,1403516,500,Test and Trace Payment
North West Leicestershire District Council,31UH,Finance,Revenues,REVS,Redacted - Personal Data,A000133,19/11/2020,1403517,500,Test and Trace Payment
North West Leicestershire District Council,31UH,Finance,Exchequer Services,EXCH,H M Land Registry,A000713,19/11/2020,1403518,561,Legal & Professional Services
North West Leicestershire District Council,31UH,Finance,Financial Planning,FINPLA,Redacted - Personal Data,A000133,19/11/2020,1403519,1485,Decant Payment
North West Leicestershire District Council,31UH,Finance,Revenues,REVS,Redacted - Personal Data,A000133,19/11/2020,1403520,500,Test and Trace Payment
North West Leicestershire District Council,31UH,Finance,Revenues,REVS,Redacted - Personal Data,A000133,19/11/2020,1403521,500,Test and Trace Payment
North West Leicestershire District Council,31UH,Finance,Revenues,REVS,Redacted - Personal Data,A000133,19/11/2020,1403522,500,Test and Trace Payment
North West Leicestershire District Council,31UH,Finance,Revenues,REVS,Redacted - Personal Data,A000133,19/11/2020,1403523,500,Test and Trace Payment
North West Leicestershire District Council,31UH,Finance,Revenues,REVS,Redacted - Personal Data,A000133,19/11/2020,1403524,500,Test and Trace Payment
North West Leicestershire District Council,31UH,Finance,Revenues,REVS,Redacted - Personal Data,A000133,19/11/2020,1403525,500,Test and Trace Payment
North West Leicestershire District Council,31UH,Finance,Revenues,REVS,Redacted - Personal Data,A000133,19/11/2020,1403526,500,Test and Trace Payment
North West Leicestershire District Council,31UH,Housing,HRA Housing Management,HRAHM,JLA Limited,A043639,25/11/2020,1403556,442,Cleaning & Domestic Equipment
North West Leicestershire District Council,31UH,Housing,HRA Housing Management,HRAHM,JLA Limited,A043639,25/11/2020,1403558,302,Cleaning & Domestic Equipment
North West Leicestershire District Council,31UH,Street Management,Environment Parks,ENOP,Leicestershire County Council,A000950,25/11/2020,1403559,404.13,Contract Cleaning
North West Leicestershire District Council,31UH,Finance,Exchequer Services,EXCH,Comensura Limited,A036958,25/11/2020,1403563,19531.49,Agency Staff
North West Leicestershire District Council,31UH,Housing Repairs,HRA Housing Repairs & Maintenance,HRAHRM,Dalrod UK Ltd,A046051,25/11/2020,1403564,3315.88,Footpaths & Unadopted Roads
North West Leicestershire District Council,31UH,Housing Repairs,HRA Housing Repairs & Maintenance,HRAHRM,Dalrod UK Ltd,A046051,25/11/2020,1403566,13710.07,Footpaths & Unadopted Roads
North West Leicestershire District Council,31UH,Finance,Exchequer Services,EXCH,Click Travel Ltd,A044308,25/11/2020,1403572,1077.17,Travel and Subsistence
North West Leicestershire District Council,31UH,Housing Repairs,HRA Housing Repairs & Maintenance,HRAHRM,Dalrod UK Ltd,A046051,25/11/2020,1403573,11754.66,Footpaths & Unadopted Roads
North West Leicestershire District Council,31UH,Legal & Democratic,Legal Services,LDLS,Sweet & Maxwell Ltd,A001611,25/11/2020,1403577,3210,Books & Publications
North West Leicestershire District Council,31UH,Housing,HRA Housing Management,HRAHM,Falcon Support,A046422,25/11/2020,1403587,69930.5,Grants
North West Leicestershire District Council,31UH,Housing,HRA Housing Management,HRAHM,The Bridge (East Midlands),A033578,25/11/2020,1403588,52815,Grants
North West Leicestershire District Council,31UH,Housing Repairs,HRA Housing Repairs & Maintenance,HRAHRM,Sure Maintenance Ltd,A040460,25/11/2020,1403596,14034.25,Plumbing & Heating
North West Leicestershire District Council,31UH,Housing Repairs,HRA Housing Repairs & Maintenance,HRAHRM,Sure Maintenance Ltd,A040460,25/11/2020,1403597,1275,Plumbing & Heating
North West Leicestershire District Council,31UH,Housing Repairs,HRA Housing Repairs & Maintenance,HRAHRM,PPG Architectural Coatings Ltd,A000876,25/11/2020,1403598,1702.47,Internal Decorations
North West Leicestershire District Council,31UH,Housing Repairs,HRA Housing Repairs & Maintenance,HRAHRM,Sure Maintenance Ltd,A040460,25/11/2020,1403600,928.09,Plumbing & Heating
North West Leicestershire District Council,31UH,Housing Repairs,HRA Housing Repairs & Maintenance,HRAHRM,Sure Maintenance Ltd,A040460,25/11/2020,1403601,474,Plumbing & Heating
North West Leicestershire District Council,31UH,Housing Repairs,HRA Housing Repairs & Maintenance,HRAHRM,Sure Maintenance Ltd,A040460,25/11/2020,1403602,1031.25,Plumbing & Heating
North West Leicestershire District Council,31UH,Property Services,Property Commercial Lettings,PROPCL,British Telecommunications Plc,A000233,25/11/2020,1403603,559.5,Telephones
North West Leicestershire District Council,31UH,Information Technology,ICT Services,ICT,British Telecommunications Plc,A000233,25/11/2020,1403605,321.95,General Repairs
North West Leicestershire District Council,31UH,Housing Repairs,HRA Housing Repairs & Maintenance,HRAHRM,European Asbestos Services Ltd,A045507,25/11/2020,1403681,12086.76,Contract Payments (Dws) Ext
North West Leicestershire District Council,31UH,Housing Repairs,HRA Housing Repairs & Maintenance,HRAHRM,Sure Maintenance Ltd,A040460,25/11/2020,1403754,14418.75,Plumbing & Heating
North West Leicestershire District Council,31UH,Housing Repairs,HRA Housing Repairs & Maintenance,HRAHRM,Sure Maintenance Ltd,A040460,25/11/2020,1403755,975,Plumbing & Heating
North West Leicestershire District Council,31UH,Housing,HRA Housing Management,HRAHM,JLA Limited,A043639,25/11/2020,1403758,282,Cleaning & Domestic Equipment
North West Leicestershire District Council,31UH,Housing,HRA Housing Management,HRAHM,Redacted - Personal Data,A046574,25/11/2020,1403759,671.42,Greenhill
North West Leicestershire District Council,31UH,Housing,HRA Housing Management,HRAHM,JLA Limited,A043639,25/11/2020,1403760,427.84,Cleaning & Domestic Equipment
North West Leicestershire District Council,31UH,Housing,HRA Housing Management,HRAHM,JLA Limited,A043639,25/11/2020,1403761,282,Cleaning & Domestic Equipment
North West Leicestershire District Council,31UH,Housing,HRA Housing Management,HRAHM,JLA Limited,A043639,25/11/2020,1403762,282,Cleaning & Domestic Equipment
North West Leicestershire District Council,31UH,Housing,HRA Housing Management,HRAHM,JLA Limited,A043639,25/11/2020,1403764,302,Cleaning & Domestic Equipment
North West Leicestershire District Council,31UH,Corporate Director,Human Resources,HR,Redacted - Personal Data,A046577,25/11/2020,1403775,500,Grants
North West Leicestershire District Council,31UH,Housing,HRA Housing Management,HRAHM,Redacted - Personal Data,A046578,25/11/2020,1403777,250,Surveillance
North West Leicestershire District Council,31UH,Housing Repairs,HRA Housing Repairs & Maintenance,HRAHRM,Laker BMS Ltd,A031787,04/11/2020,1402729,1198.25,Plumbing & Heating
North West Leicestershire District Council,31UH,Housing Repairs,HRA Housing Repairs & Maintenance,HRAHRM,Laker BMS Ltd,A031787,04/11/2020,1402730,2260.6,Contract Payments (Dws) Ext
North West Leicestershire District Council,31UH,Housing Repairs,HRA Housing Repairs & Maintenance,HRAHRM,Orbis Property Protection Ltd,A028149,04/11/2020,1402731,5775,Void Property Clearance Services
North West Leicestershire District Council,31UH,Housing Repairs,HRA Housing Repairs & Maintenance,HRAHRM,Emperor Scaffolding Limited,A038405,04/11/2020,1402738,375,Hire Of Operational Equipment
North West Leicestershire District Council,31UH,Housing Repairs,HRA Housing Repairs & Maintenance,HRAHRM,Emperor Scaffolding Limited,A038405,04/11/2020,1402739,300,Hire Of Operational Equipment
North West Leicestershire District Council,31UH,Housing Repairs,HRA Housing Repairs & Maintenance,HRAHRM,Emperor Scaffolding Limited,A038405,04/11/2020,1402740,420,Hire Of Operational Equipment
North West Leicestershire District Council,31UH,Housing Repairs,HRA Housing Repairs & Maintenance,HRAHRM,Emperor Scaffolding Limited,A038405,04/11/2020,1402741,1060,Hire Of Operational Equipment
North West Leicestershire District Council,31UH,Housing Repairs,HRA Housing Repairs & Maintenance,HRAHRM,Emperor Scaffolding Limited,A038405,04/11/2020,1402742,375,Greenhill
North West Leicestershire District Council,31UH,Housing Repairs,HRA Housing Repairs & Maintenance,HRAHRM,Emperor Scaffolding Limited,A038405,04/11/2020,1402743,375,Hire Of Operational Equipment
North West Leicestershire District Council,31UH,Housing Repairs,HRA Housing Repairs & Maintenance,HRAHRM,Western Power Distribution,A038499,04/11/2020,1402746,2086.8,Housing Repairs
North West Leicestershire District Council,31UH,Housing Repairs,HRA Housing Repairs & Maintenance,HRAHRM,Ksa Consulting Engineers Ltd,A008757,04/11/2020,1402748,450,Legal & Professional Services
North West Leicestershire District Council,31UH,Housing Repairs,HRA Housing Repairs & Maintenance,HRAHRM,Premier Mobility UK Ltd,A045304,11/11/2020,1403184,299.44,Plumbing & Heating
North West Leicestershire District Council,31UH,Housing Repairs,HRA Housing Repairs & Maintenance,HRAHRM,Orbis Property Protection Ltd,A028149,11/11/2020,1403193,1140.97,Void Property Clearance Services
North West Leicestershire District Council,31UH,Housing Repairs,HRA Housing Repairs & Maintenance,HRAHRM,Laker BMS Ltd,A031787,11/11/2020,1403194,687.25,Plumbing & Heating
North West Leicestershire District Council,31UH,Housing Repairs,HRA Housing Repairs & Maintenance,HRAHRM,Laker BMS Ltd,A031787,11/11/2020,1403195,289,Plumbing & Heating
North West Leicestershire District Council,31UH,Housing Repairs,HRA Housing Repairs & Maintenance,HRAHRM,Laker BMS Ltd,A031787,11/11/2020,1403197,687.25,Plumbing & Heating
North West Leicestershire District Council,31UH,Housing Repairs,HRA Housing Repairs & Maintenance,HRAHRM,John Merison BMC Ltd,A001092,11/11/2020,1403199,1766.84,Contract Payments (Dws) Ext
North West Leicestershire District Council,31UH,Housing Repairs,HRA Housing Repairs & Maintenance,HRAHRM,Emperor Scaffolding Limited,A038405,11/11/2020,1403200,260,Hire Of Operational Equipment
North West Leicestershire District Council,31UH,Housing Repairs,HRA Housing Repairs & Maintenance,HRAHRM,Emperor Scaffolding Limited,A038405,11/11/2020,1403201,1200,Hire Of Operational Equipment
North West Leicestershire District Council,31UH,Housing Repairs,HRA Housing Repairs & Maintenance,HRAHRM,TECSERV UK LIMITED,A028261,25/11/2020,1403725,254.34,Contract Payments (Dws) Ext
North West Leicestershire District Council,31UH,Housing Repairs,HRA Housing Repairs & Maintenance,HRAHRM,TECSERV UK LIMITED,A028261,25/11/2020,1403726,575,Contract Payments (Dws) Ext
North West Leicestershire District Council,31UH,Housing Repairs,HRA Housing Repairs & Maintenance,HRAHRM,Laker BMS Ltd,A031787,25/11/2020,1403727,1725.75,Plumbing & Heating
North West Leicestershire District Council,31UH,Housing Repairs,HRA Housing Repairs & Maintenance,HRAHRM,Laker BMS Ltd,A031787,25/11/2020,1403728,4167.93,Contract Payments (Dws) Ext
North West Leicestershire District Council,31UH,Housing Repairs,HRA Housing Repairs & Maintenance,HRAHRM,Laker BMS Ltd,A031787,25/11/2020,1403729,5138.3,Contract Payments (Dws) Ext
North West Leicestershire District Council,31UH,Housing Repairs,HRA Housing Repairs & Maintenance,HRAHRM,TECSERV UK LIMITED,A028261,25/11/2020,1403730,454.57,Contract Payments (Dws) Ext
North West Leicestershire District Council,31UH,Housing Repairs,HRA Housing Repairs & Maintenance,HRAHRM,TECSERV UK LIMITED,A028261,25/11/2020,1403731,368.79,Contract Payments (Dws) Ext
North West Leicestershire District Council,31UH,Housing Repairs,HRA Housing Repairs & Maintenance,HRAHRM,TECSERV UK LIMITED,A028261,25/11/2020,1403732,649,Contract Payments (Dws) Ext
North West Leicestershire District Council,31UH,Housing Repairs,HRA Housing Repairs & Maintenance,HRAHRM,TECSERV UK LIMITED,A028261,25/11/2020,1403736,834.02,Contract Payments (Dws) Ext
North West Leicestershire District Council,31UH,Housing Repairs,HRA Housing Repairs & Maintenance,HRAHRM,Fire Proof Ltd,A039911,25/11/2020,1403737,2985.85,Contract Payments (Dws) Ext
North West Leicestershire District Council,31UH,Housing Repairs,HRA Housing Repairs & Maintenance,HRAHRM,Timber-Link Fencing Ltd,A033297,25/11/2020,1403793,431,External Contractor Payments
North West Leicestershire District Council,31UH,Housing Repairs,HRA Housing Repairs & Maintenance,HRAHRM,Timber-Link Fencing Ltd,A033297,25/11/2020,1403794,1171,External Contractor Payments
North West Leicestershire District Council,31UH,Housing Repairs,HRA Housing Repairs & Maintenance,HRAHRM,Timber-Link Fencing Ltd,A033297,25/11/2020,1403795,486,External Contractor Payments
North West Leicestershire District Council,31UH,Housing Repairs,HRA Housing Repairs & Maintenance,HRAHRM,Timber-Link Fencing Ltd,A033297,25/11/2020,1403796,1000,External Contractor Payments
North West Leicestershire District Council,31UH,Housing Repairs,HRA Housing Repairs & Maintenance,HRAHRM,Timber-Link Fencing Ltd,A033297,25/11/2020,1403797,875,External Contractor Payments
North West Leicestershire District Council,31UH,Housing Repairs,HRA Housing Repairs & Maintenance,HRAHRM,Timber-Link Fencing Ltd,A033297,25/11/2020,1403798,3256,External Contractor Payments
North West Leicestershire District Council,31UH,Housing Repairs,HRA Housing Repairs & Maintenance,HRAHRM,Timber-Link Fencing Ltd,A033297,25/11/2020,1403799,1400,External Contractor Payments
North West Leicestershire District Council,31UH,Housing Repairs,HRA Housing Repairs & Maintenance,HRAHRM,Timber-Link Fencing Ltd,A033297,25/11/2020,1403800,730,External Contractor Payments
North West Leicestershire District Council,31UH,Housing Repairs,HRA Housing Repairs & Maintenance,HRAHRM,Timber-Link Fencing Ltd,A033297,25/11/2020,1403801,1959,External Contractor Payments
North West Leicestershire District Council,31UH,Housing Repairs,HRA Housing Repairs & Maintenance,HRAHRM,Timber-Link Fencing Ltd,A033297,25/11/2020,1403802,2370,External Contractor Payments
North West Leicestershire District Council,31UH,Housing Repairs,HRA Housing Repairs & Maintenance,HRAHRM,Timber-Link Fencing Ltd,A033297,25/11/2020,1403803,315,External Contractor Payments
North West Leicestershire District Council,31UH,Housing Repairs,HRA Housing Repairs & Maintenance,HRAHRM,Timber-Link Fencing Ltd,A033297,25/11/2020,1403804,432,External Contractor Payments
North West Leicestershire District Council,31UH,Housing Repairs,HRA Housing Repairs & Maintenance,HRAHRM,Timber-Link Fencing Ltd,A033297,25/11/2020,1403805,993,External Contractor Payments
North West Leicestershire District Council,31UH,Housing Repairs,HRA Housing Repairs & Maintenance,HRAHRM,Timber-Link Fencing Ltd,A033297,25/11/2020,1403806,990,External Contractor Payments
North West Leicestershire District Council,31UH,Housing Repairs,HRA Housing Repairs & Maintenance,HRAHRM,Timber-Link Fencing Ltd,A033297,25/11/2020,1403807,535,External Contractor Payments
North West Leicestershire District Council,31UH,Housing Repairs,HRA Housing Repairs & Maintenance,HRAHRM,Timber-Link Fencing Ltd,A033297,25/11/2020,1403808,900,External Contractor Payments
North West Leicestershire District Council,31UH,Housing Repairs,HRA Housing Repairs & Maintenance,HRAHRM,Timber-Link Fencing Ltd,A033297,25/11/2020,1403809,455,External Contractor Payments
North West Leicestershire District Council,31UH,Housing Repairs,HRA Housing Repairs & Maintenance,HRAHRM,Timber-Link Fencing Ltd,A033297,25/11/2020,1403810,675,External Contractor Payments
